[Event "*** Titled Tuesday Blitz"]
[Site "Chess.com"]
[Date "2020.11.10"]
[Round "6"]
[White "Makswolf200817"]
[Black "Leo_C"]
[Result "1-0"]
[WhiteElo "2447"]
[BlackElo "2292"]
[TimeControl "180+1"]
[EndTime "11:11:25 PST"]
[Termination "Makswolf200817 won by resignation"]

1. d4 {[%clk 0:03:00.9]} 1... d5 {[%clk 0:02:45.3]} 2. c4 {[%clk 0:02:58.8]}
2... e6 {[%clk 0:02:43.8]} 3. Nc3 {[%clk 0:02:58]} 3... c6 {[%clk 0:02:43.3]} 4.
cxd5 {[%clk 0:02:53.8]} 4... exd5 {[%clk 0:02:41.2]} 5. Bf4 {[%clk 0:02:54.1]}
5... Bd6 {[%clk 0:02:40]} 6. Bxd6 {[%clk 0:02:43.6]} 6... Qxd6 {[%clk
0:02:40.9]} 7. Nf3 {[%clk 0:02:43.6]} 7... Nf6 {[%clk 0:02:35.5]} 8. e3 {[%clk
0:02:43.5]} 8... Bf5 {[%clk 0:02:34.7]} 9. Qb3 {[%clk 0:02:39]} 9... b6 {[%clk
0:02:27.4]} 10. Be2 {[%clk 0:02:34.8]} 10... O-O {[%clk 0:02:26.8]} 11. O-O
{[%clk 0:02:29.5]} 11... Nbd7 {[%clk 0:02:26.2]} 12. Rac1 {[%clk 0:02:28.9]}
12... Ne4 {[%clk 0:02:20.2]} 13. Rfd1 {[%clk 0:02:15.7]} 13... Ndf6 {[%clk
0:02:05.9]} 14. Qa4 {[%clk 0:02:11.9]} 14... b5 {[%clk 0:02:00]} 15. Qa6 {[%clk
0:02:09.9]} 15... Bc8 {[%clk 0:01:53.2]} 16. Qa5 {[%clk 0:02:00.9]} 16... Ng4
{[%clk 0:01:34.7]} 17. Rf1 {[%clk 0:01:47.2]} 17... b4 {[%clk 0:01:23.3]} 18.
Nxe4 {[%clk 0:01:39.9]} 18... dxe4 {[%clk 0:01:20.5]} 19. Ne5 {[%clk 0:01:39.1]}
19... Nxe5 {[%clk 0:01:08.5]} 20. dxe5 {[%clk 0:01:38.4]} 20... Qe7 {[%clk
0:01:03.2]} 21. Rxc6 {[%clk 0:01:33.7]} 21... Be6 {[%clk 0:01:01.5]} 22. Rfc1
{[%clk 0:01:29.1]} 22... Rfc8 {[%clk 0:00:56.9]} 23. h3 {[%clk 0:01:25]} 23...
Rxc6 {[%clk 0:00:56.2]} 24. Rxc6 {[%clk 0:01:25.9]} 24... Rc8 {[%clk 0:00:47.5]}
25. Rxc8+ {[%clk 0:01:25.4]} 25... Bxc8 {[%clk 0:00:48.4]} 26. Qd5 {[%clk
0:01:25.5]} 26... g6 {[%clk 0:00:24.4]} 27. Qxe4 {[%clk 0:01:20.5]} 27... Kg7
{[%clk 0:00:19.7]} 28. Qd4 {[%clk 0:01:19]} 28... Be6 {[%clk 0:00:18.1]} 29. b3
{[%clk 0:01:18]} 29... Qc7 {[%clk 0:00:18]} 30. Qxb4 {[%clk 0:01:04.5]} 30...
Qc1+ {[%clk 0:00:17.4]} 31. Kh2 {[%clk 0:01:02.9]} 31... Qb2 {[%clk 0:00:17.5]}
32. Qb5 {[%clk 0:00:58.8]} 32... Qxa2 {[%clk 0:00:16.3]} 33. b4 {[%clk
0:00:57.1]} 33... Qb2 {[%clk 0:00:12.3]} 34. f4 {[%clk 0:00:39.6]} 34... a6
{[%clk 0:00:11.2]} 35. Qxa6 {[%clk 0:00:36.7]} 35... Qxb4 {[%clk 0:00:11.1]} 36.
Bf3 {[%clk 0:00:35.9]} 36... Qd2 {[%clk 0:00:08.5]} 37. Qb6 {[%clk 0:00:34.9]}
37... Qe1 {[%clk 0:00:06.3]} 38. Qd4 {[%clk 0:00:33.6]} 38... Qf2 {[%clk
0:00:06]} 39. Qd3 {[%clk 0:00:30.2]} 39... h5 {[%clk 0:00:05.8]} 40. e4 {[%clk
0:00:24.9]} 40... h4 {[%clk 0:00:06]} 41. f5 {[%clk 0:00:17.9]} 41... Qg3+
{[%clk 0:00:04.6]} 42. Kg1 {[%clk 0:00:18.1]} 42... Qe1+ {[%clk 0:00:04.1]} 43.
Qf1 {[%clk 0:00:18.3]} 43... Qxf1+ {[%clk 0:00:03.4]} 44. Kxf1 {[%clk
0:00:19.2]} 44... gxf5 {[%clk 0:00:04.2]} 45. exf5 {[%clk 0:00:19.6]} 45... Bxf5
{[%clk 0:00:05.1]} 46. Kf2 {[%clk 0:00:20.1]} 46... Kh6 {[%clk 0:00:05.5]} 47.
Ke3 {[%clk 0:00:19.8]} 47... Kg5 {[%clk 0:00:05.8]} 48. Bd5 {[%clk 0:00:17.9]}
48... Bg6 {[%clk 0:00:05.7]} 49. Bb3 {[%clk 0:00:12.5]} 49... Kf5 {[%clk
0:00:05.8]} 50. Kd4 {[%clk 0:00:12.6]} 50... Kf4 {[%clk 0:00:05.7]} 51. Bd5
{[%clk 0:00:12.7]} 51... Kg3 {[%clk 0:00:05.9]} 52. Bc6 {[%clk 0:00:06.6]} 52...
Kf4 {[%clk 0:00:05.7]} 53. Bb7 {[%clk 0:00:05.9]} 53... Kg3 {[%clk 0:00:05.8]}
54. Ke3 {[%clk 0:00:06.3]} 54... Bh5 {[%clk 0:00:05.3]} 55. Bd5 {[%clk
0:00:06.3]} 55... Bg6 {[%clk 0:00:05.6]} 56. Bc6 {[%clk 0:00:06]} 56... Bh5
{[%clk 0:00:05.8]} 57. Be4 {[%clk 0:00:06.4]} 57... Kh2 {[%clk 0:00:04.5]} 58.
Kf4 {[%clk 0:00:05.8]} 58... Kg1 {[%clk 0:00:04]} 59. Kg5 {[%clk 0:00:05.9]}
59... Be2 {[%clk 0:00:03.8]} 60. Kxh4 {[%clk 0:00:05.7]} 60... Kf2 {[%clk
0:00:04.5]} 61. Bd5 {[%clk 0:00:05.2]} 61... Ke3 {[%clk 0:00:03.3]} 62. g4
{[%clk 0:00:04.7]} 62... Kf4 {[%clk 0:00:04.2]} 63. Bxf7 {[%clk 0:00:04.4]}
63... Kxe5 {[%clk 0:00:04.5]} 64. Kg5 {[%clk 0:00:04.6]} 64... Bf1 {[%clk
0:00:03.8]} 65. h4 {[%clk 0:00:04.3]} 65... Kd6 {[%clk 0:00:04.7]} 66. Kf6
{[%clk 0:00:03.5]} 66... Kd7 {[%clk 0:00:03.9]} 67. g5 {[%clk 0:00:03.6]} 67...
Bh3 {[%clk 0:00:04]} 68. g6 {[%clk 0:00:03.5]} 68... Kd6 {[%clk 0:00:04.4]} 69.
g7 {[%clk 0:00:03.6]} 69... Be6 {[%clk 0:00:04.6]} 70. Bxe6 {[%clk 0:00:03.4]}
1-0

[Event "*** Titled Tuesday Blitz"]
[Site "Chess.com"]
[Date "2020.11.10"]
[Round "6"]
[White "Neftegor"]
[Black "ShcufNaiRolf"]
[Result "1-0"]
[WhiteElo "2465"]
[BlackElo "2331"]
[TimeControl "180+1"]
[EndTime "11:11:27 PST"]
[Termination "Neftegor won by resignation"]

1. d4 {[%clk 0:03:00.9]} 1... d5 {[%clk 0:02:58.2]} 2. c4 {[%clk 0:03:00.2]}
2... c6 {[%clk 0:02:57.7]} 3. Nc3 {[%clk 0:02:59.8]} 3... Nf6 {[%clk 0:02:57.4]}
4. e3 {[%clk 0:03:00.1]} 4... e6 {[%clk 0:02:54.9]} 5. Nf3 {[%clk 0:03:00.1]}
5... Nbd7 {[%clk 0:02:53.6]} 6. Bd3 {[%clk 0:03:00]} 6... Bd6 {[%clk 0:02:53]}
7. e4 {[%clk 0:02:59.3]} 7... dxe4 {[%clk 0:02:44.7]} 8. Nxe4 {[%clk 0:02:58]}
8... Nxe4 {[%clk 0:02:43.7]} 9. Bxe4 {[%clk 0:02:57.7]} 9... O-O {[%clk
0:02:43.5]} 10. O-O {[%clk 0:02:57.4]} 10... e5 {[%clk 0:02:43]} 11. dxe5 {[%clk
0:02:55.1]} 11... Nxe5 {[%clk 0:02:41.8]} 12. Nxe5 {[%clk 0:02:55]} 12... Bxe5
{[%clk 0:02:42.7]} 13. Bxh7+ {[%clk 0:02:54.5]} 13... Kxh7 {[%clk 0:02:43.1]}
14. Qh5+ {[%clk 0:02:54.5]} 14... Kg8 {[%clk 0:02:43]} 15. Qxe5 {[%clk
0:02:54.4]} 15... Re8 {[%clk 0:02:33.4]} 16. Qc3 {[%clk 0:02:46.3]} 16... Qh4
{[%clk 0:02:00.2]} 17. Be3 {[%clk 0:02:43.4]} 17... Re6 {[%clk 0:01:50.8]} 18.
f3 {[%clk 0:02:01.9]} 18... Rg6 {[%clk 0:01:47]} 19. Rf2 {[%clk 0:02:01.8]}
19... Be6 {[%clk 0:01:25.4]} 20. b3 {[%clk 0:02:00.8]} 20... Rd8 {[%clk
0:01:25.1]} 21. Bxa7 {[%clk 0:01:49]} 21... Bf5 {[%clk 0:00:47.4]} 22. Qe5
{[%clk 0:01:29.8]} 22... Bh3 {[%clk 0:00:36]} 23. Be3 {[%clk 0:01:19.1]} 23...
Rd3 {[%clk 0:00:23.5]} 24. Qf4 {[%clk 0:01:16.6]} 24... Qe7 {[%clk 0:00:20.5]}
25. Re1 {[%clk 0:01:14.1]} 25... Rf6 {[%clk 0:00:12.7]} 26. Qg5 {[%clk
0:01:06.8]} 26... Bf5 {[%clk 0:00:08.4]} 27. Bd2 {[%clk 0:01:03.8]} 27... Qd7
{[%clk 0:00:08.7]} 28. Bf4 {[%clk 0:00:56.5]} 28... Rg6 {[%clk 0:00:08.8]} 29.
Qh4 {[%clk 0:00:53.4]} 29... Rd1 {[%clk 0:00:09.4]} 30. Re2 {[%clk 0:00:48.5]}
30... Qd4+ {[%clk 0:00:09.4]} 31. Kh1 {[%clk 0:00:37.9]} 31... f6 {[%clk
0:00:10]} 32. Be3 {[%clk 0:00:22.4]} 32... Qd3 {[%clk 0:00:10.3]} 33. Qf2 {[%clk
0:00:22.3]} 33... b5 {[%clk 0:00:06.5]} 34. g4 {[%clk 0:00:18.6]} 34... Bd7
{[%clk 0:00:05.3]} 35. Kg2 {[%clk 0:00:18.3]} 35... bxc4 {[%clk 0:00:05.6]} 36.
bxc4 {[%clk 0:00:17.3]} 36... Be6 {[%clk 0:00:06]} 37. Kg3 {[%clk 0:00:16.8]}
37... Bxc4 {[%clk 0:00:06.2]} 38. Rxd1 {[%clk 0:00:17]} 38... Qxd1 {[%clk
0:00:05.7]} 39. Re1 {[%clk 0:00:17.2]} 39... Qd6+ {[%clk 0:00:05.8]} 40. Bf4
{[%clk 0:00:16.9]} 40... Qd5 {[%clk 0:00:06.5]} 41. h4 {[%clk 0:00:16.2]} 41...
f5 {[%clk 0:00:06.7]} 42. g5 {[%clk 0:00:15.5]} 42... Re6 {[%clk 0:00:07.1]} 43.
Rxe6 {[%clk 0:00:14.5]} 43... Qxe6 {[%clk 0:00:08]} 44. Qe3 {[%clk 0:00:14.9]}
44... Bd5 {[%clk 0:00:08.4]} 45. Qxe6+ {[%clk 0:00:14.4]} 45... Bxe6 {[%clk
0:00:09.3]} 46. a4 {[%clk 0:00:15]} 46... Bb3 {[%clk 0:00:08.1]} 47. a5 {[%clk
0:00:15.1]} 47... Bc4 {[%clk 0:00:08.6]} 48. h5 {[%clk 0:00:14]} 48... Kf7
{[%clk 0:00:09]} 49. g6+ {[%clk 0:00:14.2]} 49... Kf6 {[%clk 0:00:08.3]} 50. Bd2
{[%clk 0:00:14]} 50... Bd5 {[%clk 0:00:04.7]} 51. Kf4 {[%clk 0:00:13.9]} 51...
Ke7 {[%clk 0:00:02]} 52. Bc3 {[%clk 0:00:13.8]} 52... Kf8 {[%clk 0:00:02]} 53.
a6 {[%clk 0:00:13.9]} 53... c5 {[%clk 0:00:02.4]} 54. a7 {[%clk 0:00:13.6]}
54... c4 {[%clk 0:00:02.8]} 55. Kxf5 {[%clk 0:00:13.5]} 55... Bxf3 {[%clk
0:00:02.8]} 56. Kg5 {[%clk 0:00:12]} 56... Kg8 {[%clk 0:00:03.2]} 57. Kf4 {[%clk
0:00:04.1]} 57... Bg2 {[%clk 0:00:03]} 58. Ke5 {[%clk 0:00:04.1]} 58... Bh1
{[%clk 0:00:02.1]} 59. Kd6 {[%clk 0:00:04.3]} 59... Bf3 {[%clk 0:00:02.8]} 60.
Kc7 {[%clk 0:00:04.5]} 60... Bh1 {[%clk 0:00:03.4]} 61. Kb8 {[%clk 0:00:04.6]}
61... Bf3 {[%clk 0:00:04.2]} 62. a8=Q {[%clk 0:00:04.7]} 62... Bxa8 {[%clk
0:00:04.8]} 63. Kxa8 {[%clk 0:00:05]} 63... Kh8 {[%clk 0:00:05.4]} 64. Kb7
{[%clk 0:00:05.2]} 64... Kg8 {[%clk 0:00:05.7]} 65. Kc6 {[%clk 0:00:05.7]} 65...
Kh8 {[%clk 0:00:06.1]} 66. Kc5 {[%clk 0:00:06]} 66... Kg8 {[%clk 0:00:06.6]} 67.
Kxc4 {[%clk 0:00:06.2]} 67... Kh8 {[%clk 0:00:07.2]} 68. Kd5 {[%clk 0:00:06.8]}
68... Kg8 {[%clk 0:00:07.6]} 69. Ke6 {[%clk 0:00:07.1]} 69... Kh8 {[%clk
0:00:08.1]} 70. Kf5 {[%clk 0:00:07.3]} 70... Kg8 {[%clk 0:00:08.5]} 71. Kg5
{[%clk 0:00:07.6]} 71... Kh8 {[%clk 0:00:09]} 72. h6 {[%clk 0:00:07.5]} 72...
Kg8 {[%clk 0:00:09.5]} 73. Bd4 {[%clk 0:00:07.6]} 73... Kh8 {[%clk 0:00:09.8]}
74. Bxg7+ {[%clk 0:00:06.9]} 74... Kg8 {[%clk 0:00:10.3]} 75. Bd4 {[%clk
0:00:07.8]} 1-0

[Event "*** Titled Tuesday Blitz"]
[Site "Chess.com"]
[Date "2020.11.10"]
[Round "6"]
[White "GameOverBro"]
[Black "Blitzstream"]
[Result "1/2-1/2"]
[WhiteElo "2516"]
[BlackElo "2716"]
[TimeControl "180+1"]
[EndTime "11:11:57 PST"]
[Termination "Game drawn by 50-move rule"]

1. e4 {[%clk 0:03:00.9]} 1... d5 {[%clk 0:03:00.1]} 2. exd5 {[%clk 0:02:58.5]}
2... Qxd5 {[%clk 0:03:01]} 3. Nc3 {[%clk 0:02:58.1]} 3... Qa5 {[%clk 0:03:00.2]}
4. d4 {[%clk 0:02:57.2]} 4... Nf6 {[%clk 0:03:00.3]} 5. Nf3 {[%clk 0:02:56.6]}
5... c6 {[%clk 0:03:00.1]} 6. Ne5 {[%clk 0:02:53.7]} 6... Be6 {[%clk 0:02:59.4]}
7. Bc4 {[%clk 0:02:50.6]} 7... Bxc4 {[%clk 0:02:59]} 8. Nxc4 {[%clk 0:02:51.5]}
8... Qa6 {[%clk 0:02:55.4]} 9. Qe2 {[%clk 0:02:48.8]} 9... e6 {[%clk 0:02:53.3]}
10. O-O {[%clk 0:02:47.1]} 10... Nbd7 {[%clk 0:02:52.9]} 11. Re1 {[%clk
0:02:43.4]} 11... Bb4 {[%clk 0:02:49.3]} 12. Bd2 {[%clk 0:02:17.6]} 12... O-O
{[%clk 0:02:48.2]} 13. a3 {[%clk 0:02:11.3]} 13... Bxc3 {[%clk 0:02:48.2]} 14.
Bxc3 {[%clk 0:02:12]} 14... Nb6 {[%clk 0:02:48.9]} 15. Ne5 {[%clk 0:01:57.8]}
15... Qxe2 {[%clk 0:02:49.8]} 16. Rxe2 {[%clk 0:01:57.8]} 16... Rfd8 {[%clk
0:02:46.2]} 17. Nf3 {[%clk 0:01:51.6]} 17... Nbd5 {[%clk 0:02:33.8]} 18. Bd2
{[%clk 0:01:49.7]} 18... Ne7 {[%clk 0:02:33.3]} 19. Bg5 {[%clk 0:01:48.9]} 19...
Nf5 {[%clk 0:02:32.9]} 20. Bxf6 {[%clk 0:01:48.6]} 20... gxf6 {[%clk 0:02:32.8]}
21. c3 {[%clk 0:01:49.1]} 21... Rd7 {[%clk 0:02:29.3]} 22. Rae1 {[%clk 0:01:47]}
22... Rad8 {[%clk 0:02:28.5]} 23. g4 {[%clk 0:01:44]} 23... Nd6 {[%clk
0:02:25.8]} 24. Kg2 {[%clk 0:01:43.3]} 24... a5 {[%clk 0:02:25]} 25. Kg3 {[%clk
0:01:42.7]} 25... a4 {[%clk 0:02:24.7]} 26. Nd2 {[%clk 0:01:40.9]} 26... b5
{[%clk 0:02:24.5]} 27. h4 {[%clk 0:01:37.4]} 27... f5 {[%clk 0:02:22.8]} 28. f3
{[%clk 0:01:36.5]} 28... Kg7 {[%clk 0:02:19.6]} 29. Kf4 {[%clk 0:01:35.9]} 29...
fxg4 {[%clk 0:02:18.7]} 30. fxg4 {[%clk 0:01:35.1]} 30... h6 {[%clk 0:02:16.8]}
31. Re5 {[%clk 0:01:32.1]} 31... Ne8 {[%clk 0:02:08.3]} 32. Ne4 {[%clk
0:01:25.1]} 32... Rd5 {[%clk 0:01:59.2]} 33. Nc5 {[%clk 0:01:19.1]} 33... Nd6
{[%clk 0:01:53.5]} 34. Rxe6 {[%clk 0:01:00.4]} 34... Rxc5 {[%clk 0:01:41.2]} 35.
dxc5 {[%clk 0:01:00.1]} 35... fxe6 {[%clk 0:01:39.3]} 36. cxd6 {[%clk
0:00:59.2]} 36... Rxd6 {[%clk 0:01:39]} 37. Re2 {[%clk 0:00:56.6]} 37... Kf6
{[%clk 0:01:36]} 38. g5+ {[%clk 0:00:55.3]} 38... hxg5+ {[%clk 0:01:35.7]} 39.
hxg5+ {[%clk 0:00:56.2]} 39... Kf7 {[%clk 0:01:33.8]} 40. Rh2 {[%clk 0:00:55.9]}
40... Rd5 {[%clk 0:01:32.8]} 41. Rh7+ {[%clk 0:00:55]} 41... Kg6 {[%clk
0:01:06.2]} 42. Rh6+ {[%clk 0:00:52.4]} 42... Kf7 {[%clk 0:01:06.3]} 43. Rh7+
{[%clk 0:00:52.6]} 43... Kg6 {[%clk 0:01:06.7]} 44. Re7 {[%clk 0:00:35.2]} 44...
Rf5+ {[%clk 0:01:05.8]} 45. Ke4 {[%clk 0:00:32.3]} 45... Kxg5 {[%clk 0:01:06.1]}
46. Rxe6 {[%clk 0:00:30.5]} 46... Rf2 {[%clk 0:01:06.7]} 47. Rxc6 {[%clk
0:00:28.4]} 47... Rxb2 {[%clk 0:01:06.4]} 48. Kd4 {[%clk 0:00:24]} 48... Rb3
{[%clk 0:01:05.5]} 49. Rb6 {[%clk 0:00:21.4]} 49... Kf5 {[%clk 0:01:01.2]} 50.
Rb8 {[%clk 0:00:21.5]} 50... Ke6 {[%clk 0:01:00.1]} 51. Rb6+ {[%clk 0:00:14.9]}
51... Kd7 {[%clk 0:00:59.7]} 52. Kc5 {[%clk 0:00:15.3]} 52... Rxa3 {[%clk
0:00:52.6]} 53. Rxb5 {[%clk 0:00:06.6]} 53... Rxc3+ {[%clk 0:00:42.3]} 54. Kb4
{[%clk 0:00:04.7]} 54... Rc1 {[%clk 0:00:39.4]} 55. Kxa4 {[%clk 0:00:04.9]}
55... Kc6 {[%clk 0:00:40.3]} 56. Rb4 {[%clk 0:00:04.1]} 56... Ra1+ {[%clk
0:00:39.5]} 57. Kb3 {[%clk 0:00:04.2]} 57... Kd5 {[%clk 0:00:39.7]} 58. Rh4
{[%clk 0:00:04.2]} 58... Rb1+ {[%clk 0:00:39.9]} 59. Kc3 {[%clk 0:00:04.3]}
59... Rb8 {[%clk 0:00:40.5]} 60. Rh5+ {[%clk 0:00:04.4]} 60... Kd6 {[%clk
0:00:41.2]} 61. Rh4 {[%clk 0:00:05.3]} 61... Ra8 {[%clk 0:00:40.3]} 62. Kd3
{[%clk 0:00:05.6]} 62... Ra2 {[%clk 0:00:39.9]} 63. Kc3 {[%clk 0:00:05.8]} 63...
Ra3+ {[%clk 0:00:40.1]} 64. Kb4 {[%clk 0:00:06]} 64... Ra1 {[%clk 0:00:39.8]}
65. Rc4 {[%clk 0:00:06.4]} 65... Rb1+ {[%clk 0:00:39.5]} 66. Kc3 {[%clk
0:00:06.8]} 66... Kd5 {[%clk 0:00:39.5]} 67. Rd4+ {[%clk 0:00:06.7]} 67... Kc5
{[%clk 0:00:39.9]} 68. Rh4 {[%clk 0:00:07.4]} 68... Rc1+ {[%clk 0:00:39.6]} 69.
Kd3 {[%clk 0:00:07.9]} 69... Ra1 {[%clk 0:00:39.1]} 70. Rh5+ {[%clk 0:00:07.3]}
70... Kd6 {[%clk 0:00:39.6]} 71. Rh8 {[%clk 0:00:07.7]} 71... Ke5 {[%clk
0:00:39.1]} 72. Re8+ {[%clk 0:00:07.4]} 72... Kd6 {[%clk 0:00:39.4]} 73. Rd8+
{[%clk 0:00:07.9]} 73... Kc7 {[%clk 0:00:39.8]} 74. Rh8 {[%clk 0:00:08.4]} 74...
Kc6 {[%clk 0:00:38]} 75. Rh5 {[%clk 0:00:07.9]} 75... Ra3+ {[%clk 0:00:36.7]}
76. Kd4 {[%clk 0:00:08]} 76... Ra4+ {[%clk 0:00:37]} 77. Kc3 {[%clk 0:00:08.1]}
77... Rg4 {[%clk 0:00:36.5]} 78. Rf5 {[%clk 0:00:07.4]} 78... Rg1 {[%clk
0:00:36.7]} 79. Rh5 {[%clk 0:00:07.3]} 79... Rc1+ {[%clk 0:00:36.1]} 80. Kd3
{[%clk 0:00:07.6]} 80... Rd1+ {[%clk 0:00:36.7]} 81. Ke3 {[%clk 0:00:07.8]}
81... Ra1 {[%clk 0:00:37.6]} 82. Kd3 {[%clk 0:00:07.7]} 82... Ra3+ {[%clk
0:00:37.5]} 83. Kc4 {[%clk 0:00:07.8]} 83... Ra4+ {[%clk 0:00:38.4]} 84. Kb3
{[%clk 0:00:08]} 84... Ra8 {[%clk 0:00:38.5]} 85. Kc3 {[%clk 0:00:07.9]} 85...
Kd6 {[%clk 0:00:37.4]} 86. Kc4 {[%clk 0:00:07.1]} 86... Ke6 {[%clk 0:00:36.7]}
87. Kd4 {[%clk 0:00:07.2]} 87... Kf6 {[%clk 0:00:37]} 88. Rb5 {[%clk 0:00:07.1]}
88... Rh8 {[%clk 0:00:36.6]} 89. Rd5 {[%clk 0:00:06.1]} 89... Ke6 {[%clk
0:00:36]} 90. Re5+ {[%clk 0:00:05]} 90... Kd6 {[%clk 0:00:36.5]} 91. Re4 {[%clk
0:00:05.4]} 91... Kc6 {[%clk 0:00:37.4]} 92. Re6+ {[%clk 0:00:05.4]} 92... Kd7
{[%clk 0:00:36.9]} 93. Rg6 {[%clk 0:00:05.2]} 93... Ra8 {[%clk 0:00:37.2]} 94.
Rg7+ {[%clk 0:00:05.1]} 94... Ke6 {[%clk 0:00:37.8]} 95. Rg6+ {[%clk 0:00:06]}
95... Kf5 {[%clk 0:00:38.3]} 96. Rb6 {[%clk 0:00:06.5]} 96... Rd8+ {[%clk
0:00:38]} 97. Kc5 {[%clk 0:00:07.4]} 97... Rd1 {[%clk 0:00:38.6]} 98. Rc6 {[%clk
0:00:08.1]} 98... Ke5 {[%clk 0:00:38.8]} 99. Kb6 {[%clk 0:00:09]} 99... Kd5
{[%clk 0:00:38.3]} 100. Rh6 {[%clk 0:00:08]} 100... Rb1+ {[%clk 0:00:38.6]} 101.
Kc7 {[%clk 0:00:08.3]} 101... Rc1+ {[%clk 0:00:38.8]} 102. Kd7 {[%clk
0:00:08.5]} 102... Ra1 {[%clk 0:00:38.5]} 103. Rh5+ {[%clk 0:00:08.5]} 103...
Ke4 {[%clk 0:00:39.1]} 104. Kd6 {[%clk 0:00:07.9]} 104... Ra6+ {[%clk
0:00:38.4]} 105. Kc7 {[%clk 0:00:08.1]} 1/2-1/2